bitfinex/quotes_BTCUSD_20260221
["timestamp","ask_amount","ask_price","bid_price","bid_amount"]
[1771693816918,0.02411876,68340.0,68330.0,0.00016]
[1771693817116,0.02411876,68340.0,68322.0,0.00022]
[1771693817117,0.07317286,68332.0,68322.0,0.00022]
[1771693817329,0.0970921,68331.0,68324.0,0.07317966]
[1771693817528,0.02391876,68331.0,68325.0,0.07317879]
[1771693818081,0.02391876,68331.0,68326.0,0.07317839]
[1771693819302,0.02391876,68331.0,68325.0,0.06918387]
[1771693819502,0.07317625,68329.0,68322.0,0.00022]
[1771693819709,0.09709501,68329.0,68322.0,0.07340254]
[1771693819916,0.07317671,68328.0,68322.0,0.00022]
[1771693820167,0.07317752,68327.0,68322.0,0.00022]
[1771693820364,0.09709501,68329.0,68322.0,0.00022]
[1771693820739,0.02391876,68331.0,68322.0,0.00022]
[1771693820946,0.0731795,68326.0,68322.0,0.00022]
[1771693821161,0.09709826,68326.0,68322.0,0.00022]
[1771693821369,0.02391876,68326.0,68322.0,0.00022]
[1771693822192,0.09709766,68326.0,68322.0,0.00022]
[1771693822395,0.02391876,68326.0,68322.0,0.00022]
[1771693823235,0.09709764,68326.0,68322.0,0.00022]
[1771693823446,0.02391876,68326.0,68322.0,0.00022]
[1771693823646,0.0731751,68331.0,68322.0,0.07340276]
[1771693824683,0.0731751,68331.0,68323.0,0.07318179]
[1771693826630,0.07317471,68330.0,68323.0,0.07318179]
[1771693827734,0.0731751,68331.0,68323.0,0.07318179]
[1771693828355,0.0733751,68331.0,68323.0,0.07318179]
[1771693829946,0.0733751,68331.0,68324.0,0.07318063]
[1771693830332,0.07317433,68330.0,68323.0,0.07318179]
[1771693831156,0.0732911,68330.0,68323.0,0.07318179]
[1771693832593,0.00011677,68330.0,68323.0,0.07318179]
[1771693832912,0.0002,68331.0,68322.0,0.00022]
[1771693833165,0.79415684,68360.0,68322.0,0.00022]
[1771693833166,0.00036,68340.0,68334.0,0.07316973]
[1771693833366,0.07352368,68340.0,68332.0,0.07317128]
[1771693834247,0.07352444,68340.0,68332.0,0.07317128]
[1771693836646,0.07352444,68340.0,68331.0,0.07317109]
[1771693836866,0.07352444,68340.0,68332.0,0.07317215]
[1771693837311,0.07316495,68339.0,68330.0,0.07317328]
[1771693837484,0.07316574,68338.0,68330.0,0.07317328]
[1771693838098,0.07316715,68337.0,68329.0,0.07317506]
[1771693839541,0.07316715,68337.0,68328.0,0.07317432]
[1771693840402,0.07316715,68337.0,68330.0,0.07317401]
[1771693844582,0.0002,68338.0,68325.0,0.35645731]
[1771693844782,0.0002,68338.0,68333.0,0.07317081]
[1771693845544,0.0002,68338.0,68331.0,0.07317284]
[1771693845945,0.0002,68338.0,68332.0,0.07317209]
[1771693846309,0.0002,68338.0,68333.0,0.07317078]
[1771693847075,0.00036,68340.0,68334.0,0.07316937]
[1771693848106,0.00036,68340.0,68333.0,0.07317028]
[1771693849099,0.0002,68338.0,68333.0,0.07317028]
[1771693849841,0.0002,68338.0,68331.0,0.02367218]
[1771693850071,0.07336591,68338.0,68331.0,0.02367218]
[1771693850279,0.07336591,68338.0,68330.0,0.07339359]
[1771693850435,0.07336591,68338.0,68331.0,0.07317316]
[1771693851865,0.0002,68338.0,68331.0,0.07317316]
[1771693854437,0.07336577,68338.0,68331.0,0.07317316]
[1771693854609,0.0002,68338.0,68331.0,0.07317316]
[1771693855322,0.0002,68338.0,68332.0,0.07317137]
[1771693855656,0.0002,68338.0,68330.0,0.00022]
[1771693856058,0.0002,68338.0,68333.0,0.07317027]
[1771693860145,0.0002,68338.0,68330.0,0.00022]
[1771693860347,0.02482133,68349.0,68341.0,0.07316205]
[1771693860559,0.02482133,68349.0,68342.0,0.07316061]
[1771693860897,0.02482133,68349.0,68343.0,0.07315994]
[1771693861412,0.02482133,68349.0,68342.0,0.07316108]
[1771693861932,0.00316,68350.0,68339.0,0.18822301]
[1771693862137,0.00038937,68349.0,68344.0,0.07315869]
[1771693862766,0.00038937,68349.0,68345.0,0.07315754]
[1771693863727,0.00038937,68349.0,68346.0,0.07315698]
[1771693863953,0.07334872,68353.0,68346.0,0.07315698]
[1771693864214,0.07341136,68353.0,68346.0,0.07315698]
[1771693864403,0.07341136,68353.0,68345.0,0.0731579]
[1771693864604,0.07315221,68351.0,68342.0,0.09683154]
[1771693865198,0.07315221,68351.0,68345.0,0.001]
[1771693865381,0.07315221,68351.0,68342.0,0.09683154]
[1771693865582,0.0002,68349.0,68342.0,0.09683154]
[1771693865782,0.0002,68349.0,68343.0,0.07316038]
[1771693866692,0.0002,68349.0,68342.0,0.0731613]
[1771693867070,0.0002,68349.0,68343.0,0.07316038]
[1771693870753,0.02387641,68343.0,68330.0,0.00038]
[1771693870892,0.09704291,68338.0,68330.0,0.07355364]
[1771693871088,0.09704291,68338.0,68325.0,0.17576]
[1771693871089,0.02387641,68337.0,68326.0,0.29271142]
[1771693871625,0.00016,68340.0,68332.0,0.07317215]
[1771693872250,0.00016,68340.0,68336.0,0.07316716]
[1771693872674,0.001,68337.0,68336.0,0.07316716]
[1771693873005,0.00016,68340.0,68335.0,0.07316881]
[1771693873198,0.00016,68340.0,68332.0,0.07317141]
[1771693873339,0.02387641,68339.0,68331.0,0.00022]
[1771693874325,0.02387641,68339.0,68336.0,0.001]
[1771693874555,0.02387641,68337.0,68336.0,0.001]
[1771693875818,0.02387641,68337.0,68331.0,0.07339242]
[1771693876013,0.02387641,68337.0,68331.0,0.00022]
[1771693876334,0.02387641,68337.0,68332.0,0.07317141]
[1771693876546,0.07332396,68340.0,68331.0,0.0733911]
[1771693876734,0.00016,68340.0,68331.0,0.0733911]
[1771693877515,0.00016,68340.0,68333.0,0.07317097]
[1771693878801,0.00016,68340.0,68336.0,0.00022]
[1771693879073,0.02403641,68340.0,68336.0,0.00022]
[1771693879277,0.02503641,68340.0,68336.0,0.00022]
[1771693879496,0.02403641,68340.0,68336.0,0.00022]
[1771693883536,0.02403641,68340.0,68336.0,0.0733878]
[1771693884059,0.02403641,68340.0,68336.0,0.00022]
[1771693887189,0.02423641,68340.0,68336.0,0.00022]
[1771693892388,0.02423641,68340.0,68336.0,0.00122]
[1771693893798,0.02423641,68340.0,68336.0,0.00022]
[1771693894919,0.02423641,68340.0,68334.0,0.07316971]
[1771693894920,0.02387641,68338.0,68324.0,0.17598]
[1771693895116,0.02387641,68331.0,68324.0,0.07318036]
[1771693895521,0.02387641,68331.0,68325.0,0.07317944]
[1771693895780,0.02387641,68331.0,68324.0,0.07318043]
[1771693895926,0.02387641,68331.0,68325.0,0.07317959]
[1771693896494,0.02387641,68331.0,68325.0,0.07356896]
[1771693897136,0.09704969,68331.0,68325.0,0.00038937]
[1771693897345,0.09704982,68331.0,68325.0,0.00038937]
[1771693899105,0.02387641,68331.0,68325.0,0.00038937]
[1771693899725,0.09704986,68331.0,68325.0,0.00038937]
[1771693899890,0.07317464,68330.0,68325.0,0.00038937]
[1771693900105,0.02345284,68330.0,68325.0,0.00038937]
[1771693900383,0.02345284,68328.0,68325.0,0.00038937]
[1771693900631,0.02345284,68328.0,68325.0,0.00068417]
[1771693901399,0.02345284,68328.0,68325.0,0.00090417]
[1771693901833,0.14308946,68333.0,68320.0,0.00016]
[1771693902171,0.02345284,68327.0,68321.0,0.07318313]
[1771693902388,0.29266528,68338.0,68325.0,0.07317956]
[1771693902620,0.07317108,68334.0,68325.0,0.07317956]
[1771693903300,0.07317108,68334.0,68326.0,0.07317845]
[1771693903489,0.06089508,68334.0,68326.0,0.07317845]
[1771693903716,0.07317124,68333.0,68325.0,0.07317956]
[1771693909172,0.07317212,68334.0,68325.0,0.07317956]
[1771693909410,0.07317212,68334.0,68326.0,0.07317858]
[1771693909614,0.07317092,68335.0,68326.0,0.07317858]
[1771693910489,0.07317135,68333.0,68326.0,0.07317858]
[1771693910713,0.07317135,68333.0,68325.0,0.07317937]
[1771693913104,0.07317227,68332.0,68325.0,0.07317937]
[1771693913311,0.07317143,68333.0,68325.0,0.07317937]
[1771693914309,0.07317143,68333.0,68326.0,0.07317847]
[1771693915587,0.2926689,68337.0,68326.0,0.07317847]
[1771693915816,0.07317074,68334.0,68327.0,0.02418102]
[1771693915968,0.07328953,68339.0,68327.0,0.02418102]
[1771693916603,0.09674237,68339.0,68327.0,0.02418102]
[1771693916803,0.07317126,68333.0,68326.0,0.0731782]
[1771693919207,0.07317043,68334.0,68326.0,0.07317775]
[1771693919410,0.07317136,68333.0,68326.0,0.07317775]
[1771693921571,0.07317136,68333.0,68326.0,0.07339775]
[1771693922837,0.07317136,68333.0,68326.0,0.00022]
[1771693923038,0.07317404,68331.0,68326.0,0.00022]
[1771693923356,0.07317108,68333.0,68326.0,0.00022]
[1771693923981,0.07317215,68332.0,68326.0,0.00022]
[1771693925438,0.07317354,68331.0,68324.0,0.00022]
[1771693925645,0.07317354,68331.0,68324.0,0.07340004]
[1771693928129,0.07317354,68331.0,68326.0,0.00022]
[1771693941152,0.07317354,68331.0,68324.0,0.07340004]
[1771693941572,0.07317354,68331.0,68326.0,0.00022]
[1771693941773,0.07317354,68331.0,68324.0,0.07340004]
[1771693947218,0.0002,68332.0,68324.0,0.07340045]
[1771693948212,0.0002,68331.0,68324.0,0.07340045]
[1771693948614,0.07337326,68331.0,68324.0,0.07340045]
[1771693952182,0.0002,68331.0,68325.0,0.07317964]
[1771693954851,0.0002,68331.0,68325.0,0.07228888]
[1771693956625,0.0002,68331.0,68325.0,0.06378942]
[1771693957430,0.0002,68331.0,68326.0,0.07317856]
[1771693957579,0.0002,68331.0,68325.0,0.07317771]
[1771693957929,0.0002,68331.0,68326.0,0.0731779]
[1771693958131,0.0002,68331.0,68325.0,0.07317771]
[1771693958892,0.0002,68331.0,68324.0,0.00022]
[1771693959483,0.02333047,68331.0,68324.0,0.00022]
[1771693959896,0.0731743,68330.0,68324.0,0.00022]
[1771693960543,0.0002,68334.0,68325.0,0.02409401]
[1771693960720,0.07317415,68331.0,68324.0,0.00022]
[1771693960926,0.07317415,68331.0,68324.0,0.07340044]
[1771693961143,0.0002,68331.0,68325.0,0.07317964]
[1771693962280,0.07317237,68332.0,68325.0,0.09727365]
[1771693964949,0.07337028,68334.0,68326.0,0.07317785]
[1771693965983,0.07317154,68333.0,68326.0,0.07317785]
[1771693967047,0.0002,68334.0,68328.0,0.07317603]
[1771693967258,0.0002,68334.0,68324.0,0.29294153]
[1771693967259,0.07316081,68343.0,68324.0,0.0230911]
[1771693967460,0.0001238,68346.0,68334.0,0.07316931]
[1771693967644,0.0731622,68342.0,68333.0,0.09726311]
[1771693968139,0.07316078,68343.0,68335.0,0.07316874]
[1771693969540,0.07316025,68344.0,68333.0,0.02409401]
[1771693969745,0.07315853,68345.0,68338.0,0.07316569]
[1771693969943,0.07316037,68344.0,68331.0,0.29269026]
[1771693970550,0.07316037,68344.0,68336.0,0.0731675]
[1771693971624,0.07416037,68344.0,68336.0,0.0731675]
[1771693972745,0.07316037,68344.0,68336.0,0.0731675]
[1771693974709,0.07336037,68344.0,68336.0,0.0731675]
[1771693978834,0.0002,68344.0,68332.0,0.02409401]
[1771693979358,0.07316514,68339.0,68332.0,0.02409401]
[1771693979535,0.07316514,68339.0,68331.0,0.07339244]
[1771693979721,0.07316588,68338.0,68331.0,0.00022]
[1771693979927,0.09629561,68339.0,68331.0,0.00022]
[1771693979928,0.09629561,68339.0,68331.0,0.07339291]
[1771693981732,0.02313047,68339.0,68324.0,0.07340036]
[1771693981851,0.00016,68340.0,68324.0,0.07340036]
[1771693981852,0.07317101,68334.0,68326.0,0.07317847]
[1771693982046,0.07317101,68334.0,68324.0,0.07340036]
[1771693982047,0.09630148,68334.0,68324.0,0.07340036]
[1771693982280,0.07317143,68333.0,68325.0,0.07339918]
[1771693982826,0.0731744,68330.0,68325.0,0.00022]
[1771693982962,0.07317355,68331.0,68325.0,0.00022]
[1771693983166,0.07317417,68331.0,68325.0,0.00022]
[1771693984409,0.07317431,68330.0,68320.0,0.09633241]
[1771693984692,0.07317558,68329.0,68322.0,0.07318277]
[1771693985133,0.09630393,68331.0,68323.0,0.07318116]
[1771693985312,0.02313047,68329.0,68320.0,0.09633224]
[1771693985510,0.02313047,68329.0,68323.0,0.07318177]
[1771693986802,0.07317343,68331.0,68323.0,0.07318177]
[1771693987225,0.07317343,68331.0,68323.0,0.07340177]
[1771693989241,0.07317435,68330.0,68323.0,0.07340177]
[1771693991865,0.02313047,68335.0,68324.0,0.07318072]
[1771693992701,0.07317066,68334.0,68323.0,0.02374372]
[1771693992914,0.07316662,68338.0,68325.0,0.1444282]
[1771693993115,0.07316662,68338.0,68329.0,0.23783611]
[1771693993319,0.07316662,68338.0,68329.0,0.07317431]
[1771693994248,0.07316752,68337.0,68329.0,0.07317431]
[1771693997752,0.07316752,68337.0,68330.0,0.07317409]
[1771693998361,0.07316752,68337.0,68329.0,0.07317501]
[1771694000818,0.07336752,68337.0,68329.0,0.07317501]
[1771694001023,0.0002,68337.0,68330.0,0.07317403]
[1771694001618,0.0001238,68339.0,68330.0,0.07317224]
[1771694001789,0.07316478,68339.0,68331.0,0.07317323]
[1771694001994,0.05787367,68339.0,68331.0,0.07317323]
[1771694002573,0.07316734,68337.0,68329.0,0.0731746]
[1771694003026,0.07316803,68336.0,68329.0,0.0731746]
[1771694003567,0.07316702,68337.0,68329.0,0.0731746]
[1771694007148,0.06813178,68339.0,68331.0,0.07317234]
[1771694008428,0.06913178,68339.0,68331.0,0.07317234]
[1771694010758,0.0731659,68338.0,68331.0,0.07317234]
[1771694011998,0.0679329,68338.0,68331.0,0.07317234]
[1771694012180,0.06495797,68339.0,68332.0,0.07317209]
[1771694013216,0.06495797,68339.0,68331.0,0.07317294]
[1771694013341,0.06595797,68339.0,68331.0,0.07317294]
[1771694013740,0.06615797,68339.0,68331.0,0.07317294]
[1771694014212,0.07316616,68338.0,68331.0,0.07317294]
[1771694016145,0.07316616,68338.0,68330.0,0.07317399]
[1771694016509,0.0002,68339.0,68330.0,0.07317376]
[1771694016712,0.0002,68339.0,68331.0,0.07317323]
[1771694018017,0.0002,68339.0,68329.0,0.00022]
[1771694018220,0.07316821,68336.0,68329.0,0.00022]
[1771694018629,0.07316924,68335.0,68329.0,0.00022]
[1771694018829,0.07316869,68336.0,68329.0,0.00022]
[1771694019240,0.07317095,68334.0,68326.0,0.07317813]
[1771694021892,0.07317095,68335.0,68326.0,0.07317813]
[1771694021893,0.07317112,68333.0,68326.0,0.07317813]
[1771694022042,0.07316752,68337.0,68329.0,0.07317513]
[1771694022454,0.07316855,68336.0,68329.0,0.07317513]
[1771694023642,0.001,68333.0,68329.0,0.07317513]
[1771694024154,0.001,68333.0,68326.0,0.0731779]
[1771694024354,0.07317022,68334.0,68326.0,0.0731779]
[1771694024785,0.07317022,68334.0,68327.0,0.07317708]
[1771694024990,0.07316926,68335.0,68327.0,0.07317751]
[1771694025140,0.07316926,68335.0,68329.0,0.001]
[1771694025340,0.07316926,68335.0,68327.0,0.07317751]
[1771694026335,0.07316926,68335.0,68329.0,0.00022]
[1771694030993,0.0731743,68330.0,68329.0,0.00022]
[1771694031339,0.07317362,68331.0,68323.0,0.07340089]
[1771694032666,0.07317362,68331.0,68329.0,0.00022]
[1771694033021,0.07317246,68332.0,68329.0,0.00022]
[1771694033600,0.07317077,68334.0,68329.0,0.00022]
[1771694037825,0.07317141,68333.0,68329.0,0.00022]
[1771694038508,0.07317233,68332.0,68324.0,0.09693512]
[1771694038906,0.07317302,68333.0,68325.0,0.0731789]
[1771694039881,0.001,68332.0,68325.0,0.0731789]
[1771694040082,0.07317302,68333.0,68325.0,0.0731789]
[1771694040738,0.07317209,68333.0,68325.0,0.0731789]
[1771694042090,0.07317209,68333.0,68326.0,0.07317846]
[1771694042503,0.07317036,68334.0,68325.0,0.2165554]
[1771694042665,0.07317036,68334.0,68326.0,0.07317858]
[1771694043687,0.07417036,68334.0,68326.0,0.07317858]
[1771694043857,0.07317036,68334.0,68326.0,0.07317858]
[1771694044878,0.07317036,68334.0,68327.0,0.07317698]
[1771694046624,0.07336913,68335.0,68328.0,0.07317643]
[1771694046849,0.0002,68335.0,68325.0,0.02308638]
[1771694046997,0.07316613,68338.0,68330.0,0.0731737]
[1771694047704,0.07336566,68339.0,68330.0,0.0731737]
[1771694047705,0.07336566,68339.0,68331.0,0.07317231]
[1771694049157,0.07336566,68339.0,68330.0,0.0731737]
[1771694049363,0.0002,68339.0,68329.0,0.21655274]
[1771694049576,0.07316765,68337.0,68329.0,0.21655274]
[1771694049918,0.07316765,68337.0,68329.0,0.07317502]
[1771694050099,0.07316765,68337.0,68330.0,0.07317397]
[1771694051353,0.07316938,68335.0,68328.0,0.09693084]
[1771694052111,0.07316798,68336.0,68328.0,0.09693084]
[1771694052407,0.07316798,68336.0,68328.0,0.08960637]
[1771694053836,0.0002,68339.0,68329.0,0.02467424]
[1771694053995,0.0002,68339.0,68332.0,0.21566986]
[1771694055123,0.0012,68339.0,68332.0,0.21566986]
[1771694055313,0.0002,68339.0,68332.0,0.21566986]
[1771694055718,0.0002,68344.0,68331.0,0.02467424]
[1771694055926,0.0002,68344.0,68337.0,0.07316642]
[1771694056257,0.07335936,68344.0,68337.0,0.07316642]
[1771694057426,0.07435936,68344.0,68337.0,0.07316642]
[1771694058087,0.07335936,68344.0,68337.0,0.07316642]
[1771694059595,0.07316044,68343.0,68336.0,0.21566614]
[1771694061402,0.02485515,68343.0,68330.0,0.00016]
[1771694061613,0.07316533,68339.0,68331.0,0.07317254]
[1771694062954,0.07316575,68338.0,68331.0,0.07417254]
[1771694064433,0.0980209,68338.0,68331.0,0.07417254]
[1771694064642,0.0980209,68338.0,68331.0,0.03096033]
[1771694064829,0.0980209,68338.0,68331.0,0.02996033]
[1771694066096,0.0982209,68338.0,68331.0,0.02996033]
[1771694066455,0.0982209,68338.0,68330.0,0.00016]
[1771694066630,0.07316883,68336.0,68330.0,0.00016]
[1771694066834,0.0731668,68337.0,68330.0,0.00016]
[1771694067153,0.07316787,68336.0,68330.0,0.00016]
[1771694071650,0.07300979,68336.0,68330.0,0.00016]
[1771694072295,0.07316707,68337.0,68330.0,0.00016]
[1771694072807,0.07316707,68337.0,68330.0,0.07333428]
[1771694073011,0.09822129,68338.0,68331.0,0.07317251]
[1771694076419,0.0002,68338.0,68332.0,0.07317198]
[1771694076621,0.0002,68338.0,68332.0,0.02281426]
[1771694076851,0.0002,68338.0,68331.0,0.07317118]
[1771694077348,0.0002,68338.0,68332.0,0.07317137]
[1771694077697,0.0012,68338.0,68332.0,0.07317137]
[1771694078561,0.0002,68338.0,68331.0,0.07317118]
[1771694079167,0.0002,68338.0,68333.0,0.07317016]
[1771694080703,0.0002,68338.0,68333.0,0.07339016]
[1771694081811,0.07316342,68341.0,68333.0,0.07339016]
[1771694082023,0.001,68338.0,68333.0,0.07339016]
[1771694082222,0.07316342,68341.0,68333.0,0.21466334]
[1771694082625,0.07316342,68341.0,68333.0,0.21566334]
[1771694083730,0.07316342,68341.0,68333.0,0.21466334]
[1771694085105,0.07316354,68342.0,68334.0,0.0731699]
[1771694086184,0.07316475,68339.0,68333.0,0.14149318]
[1771694086363,0.02385599,68338.0,68330.0,0.00038]
[1771694087487,0.073167,68337.0,68330.0,0.07355422]
[1771694088225,0.07316613,68338.0,68330.0,0.07355422]
[1771694088372,0.07336613,68338.0,68330.0,0.07355422]
[1771694088569,0.07336613,68338.0,68331.0,0.07317312]
[1771694088798,0.0002,68338.0,68331.0,0.07317312]
[1771694089256,0.13016962,68337.0,68320.0,0.17625677]
[1771694089373,0.02385599,68335.0,68325.0,0.07317896]
[1771694089575,0.02385599,68335.0,68328.0,0.07317552]
[1771694090226,0.02385599,68335.0,68329.0,0.07317527]
[1771694091123,0.02385599,68335.0,68330.0,0.07317336]
[1771694091682,0.02385599,68335.0,68329.0,0.07317527]
[1771694092270,0.13016962,68337.0,68322.0,0.0003438]
[1771694092432,0.02385599,68331.0,68324.0,0.07317985]
[1771694094728,0.02485599,68331.0,68324.0,0.07317985]
[1771694097738,0.02385599,68331.0,68324.0,0.07317985]
[1771694098144,0.02485599,68331.0,68324.0,0.07317985]
[1771694098624,0.07417373,68331.0,68320.0,0.00049677]
[1771694098836,0.14640448,68330.0,68310.0,0.00038]
[1771694099213,0.07318628,68319.0,68311.0,0.07341463]
[1771694099388,0.09704227,68319.0,68311.0,0.07341463]
[1771694099563,0.09688415,68319.0,68311.0,0.07341463]
[1771694100157,0.40022803,68329.0,68311.0,0.00022]
[1771694100158,0.29271005,68329.0,68311.0,0.00022]
[1771694100366,0.0002,68338.0,68320.0,0.00016]
[1771694100614,0.0002,68338.0,68328.0,0.1642075]
[1771694100795,0.07336575,68338.0,68330.0,0.07317388]
[1771694101539,0.0002,68335.0,68330.0,0.07317388]
[1771694101768,0.0002,68335.0,68330.0,0.03008356]
[1771694101923,0.0002,68335.0,68328.0,0.21350266]
[1771694102498,0.0002,68335.0,68331.0,0.073173]
[1771694104025,0.0002,68335.0,68331.0,0.21544618]
[1771694104582,0.0002,68335.0,68331.0,0.073173]
[1771694104751,0.0002,68335.0,68332.0,0.14127318]
[1771694105135,0.0002,68335.0,68333.0,0.07317108]
[1771694105478,0.0002,68335.0,68332.0,0.21444515]
[1771694106372,0.0002,68335.0,68332.0,0.14127318]
[1771694106779,0.0002,68335.0,68332.0,0.14227318]
[1771694106978,0.0002,68335.0,68332.0,0.14127318]
[1771694107340,0.0002,68335.0,68332.0,0.14227318]
[1771694107543,0.0002,68335.0,68332.0,0.14127318]
[1771694107976,0.0002,68335.0,68332.0,0.14227318]
[1771694108184,0.0002,68335.0,68332.0,0.14127318]
[1771694108452,0.0002,68335.0,68332.0,0.14227318]
[1771694108895,0.0002,68335.0,68332.0,0.001]
[1771694110307,0.0002,68335.0,68330.0,0.07317352]
[1771694110514,0.0002,68335.0,68332.0,0.001]
[1771694110665,0.0002,68335.0,68331.0,0.07317315]
[1771694111060,0.0002,68335.0,68332.0,0.001]
[1771694112606,0.00016,68340.0,68335.0,0.13236537]
[1771694112806,0.00016,68340.0,68336.0,0.13236537]
[1771694113734,0.00016,68340.0,68334.0,0.07316987]
[1771694113735,0.0016912,68340.0,68334.0,0.07316987]
[1771694113956,0.0006912,68340.0,68334.0,0.07316987]
[1771694114329,0.0006912,68340.0,68333.0,0.07317005]
[1771694114982,0.0016912,68340.0,68333.0,0.07317005]
[1771694115159,0.0006912,68340.0,68333.0,0.07317005]
[1771694115513,0.0008912,68340.0,68333.0,0.07317005]
[1771694116520,0.0008912,68340.0,68334.0,0.07316973]
[1771694117531,0.0008912,68340.0,68333.0,0.07317073]
[1771694117743,0.0008912,68340.0,68330.0,0.07317359]
[1771694117928,0.07316922,68335.0,68327.0,0.07339695]
[1771694118069,0.07316801,68336.0,68329.0,0.07317462]
[1771694118274,0.07316638,68338.0,68330.0,0.07317336]
[1771694118722,0.0003809,68338.0,68332.0,0.07317132]
[1771694122582,0.0005809,68338.0,68332.0,0.07317132]
[1771694123432,0.00016,68350.0,68328.0,0.16482604]
[1771694123661,0.0230815,68350.0,68338.0,0.23777168]
[1771694123865,0.0230815,68350.0,68338.0,0.16460604]
[1771694124076,0.07315717,68346.0,68339.0,0.07316439]
[1771694124476,0.09623498,68350.0,68340.0,0.0731627]
[1771694124681,0.07330462,68349.0,68342.0,0.07316142]
[1771694125078,0.0001503,68349.0,68342.0,0.07316142]
[1771694125764,0.07315578,68348.0,68341.0,0.0731623]
[1771694126433,0.0005397,68349.0,68343.0,0.07315945]
[1771694126609,0.0005397,68349.0,68343.0,0.07316038]
[1771694127230,0.0005397,68349.0,68343.0,0.20552575]
[1771694127995,0.0005397,68349.0,68344.0,0.07315912]
[1771694128197,0.0005397,68349.0,68344.0,0.20552449]
[1771694128588,0.0005397,68349.0,68344.0,0.13236537]
[1771694128696,0.07315636,68347.0,68340.0,0.073163]
[1771694128927,0.07315831,68345.0,68333.0,0.42504684]
[1771694129143,0.09607981,68345.0,68333.0,0.42504684]
[1771694129402,0.0229215,68344.0,68337.0,0.07316677]
[1771694131186,0.0229215,68344.0,68338.0,0.07316565]
[1771694132253,0.07316025,68344.0,68336.0,0.07316576]
[1771694132471,0.0229215,68343.0,68337.0,0.07316663]
[1771694132701,0.0229215,68343.0,68333.0,0.07317038]
[1771694132903,0.09608218,68343.0,68336.0,0.07316779]
[1771694133083,0.09608218,68343.0,68332.0,0.00022]
[1771694133084,0.07316393,68340.0,68332.0,0.07339212]
[1771694134530,0.07316468,68339.0,68332.0,0.07339212]
[1771694135031,0.07316468,68339.0,68332.0,0.00022]
[1771694135257,0.0229215,68338.0,68332.0,0.07339196]
[1771694135660,0.09608763,68338.0,68332.0,0.00022]
[1771694135982,0.09608751,68338.0,68332.0,0.00022]
[1771694136860,0.0229215,68338.0,68332.0,0.00022]
[1771694137270,0.07316426,68340.0,68332.0,0.07339206]
[1771694137601,0.40206853,68376.0,68332.0,0.00022]
[1771694137602,0.00016,68350.0,68332.0,0.00022]
[1771694137801,1e-08,68357.0,68356.0,0.07314646]
[1771694138026,0.0001503,68365.0,68364.0,0.0731379]
[1771694138224,0.00316,68370.0,68364.0,0.07313764]
[1771694138438,0.00316,68370.0,68362.0,0.07313909]
[1771694138650,0.07629165,68370.0,68362.0,0.07313923]
[1771694139254,0.0731327,68369.0,68361.0,0.07314083]
[1771694139426,0.07313544,68367.0,68360.0,0.30319562]
[1771694139635,0.0731344,68368.0,68359.0,0.09735775]
[1771694139636,0.07313582,68366.0,68359.0,0.02421509]
[1771694139806,0.07313582,68366.0,68358.0,0.07314222]
[1771694141385,0.07313582,68366.0,68360.0,0.001]
[1771694141587,0.07313582,68366.0,68358.0,0.07314222]
[1771694142964,0.07333582,68366.0,68358.0,0.07314222]
[1771694143849,0.07313703,68365.0,68358.0,0.07314222]
[1771694144050,0.07333582,68366.0,68358.0,0.07314222]
[1771694144704,0.07333582,68366.0,68359.0,0.07314294]
[1771694144907,0.0002,68366.0,68360.0,0.13858958]
[1771694145130,0.07629161,68370.0,68362.0,0.07313912]
[1771694145342,0.001,68366.0,68360.0,0.30319562]
[1771694145451,0.07629161,68370.0,68360.0,0.13858958]
[1771694145655,0.07629161,68370.0,68362.0,0.07313927]
[1771694145914,0.001,68366.0,68362.0,0.21172885]
[1771694146114,0.07313285,68369.0,68362.0,0.13858958]
[1771694146286,0.0731368,68366.0,68357.0,0.07314463]
[1771694146527,0.09738042,68366.0,68357.0,0.07314463]
[1771694146967,0.09738042,68366.0,68358.0,0.07314429]
[1771694148635,0.09838042,68366.0,68358.0,0.07314429]
[1771694149244,0.09858042,68366.0,68358.0,0.07314429]
[1771694149632,0.0743368,68366.0,68358.0,0.07314429]
[1771694155903,0.0743368,68366.0,68358.0,0.07336429]
[1771694157467,0.0733368,68366.0,68358.0,0.07336429]
[1771694157602,0.0743368,68366.0,68358.0,0.07336429]
[1771694159962,0.0012,68366.0,68358.0,0.07336429]
[1771694160239,0.02424362,68362.0,68353.0,0.0001273]
[1771694160434,0.07316252,68341.0,68330.0,0.34064894]
[1771694160633,0.0973995,68348.0,68340.0,0.00025115]
[1771694161149,0.0731561,68347.0,68340.0,0.00025115]
[1771694161982,0.0731572,68346.0,68340.0,0.00025115]
[1771694162206,0.02424362,68348.0,68340.0,0.00025115]
[1771694162420,0.001,68347.0,68340.0,0.00025115]
[1771694163205,0.001,68347.0,68341.0,0.07316252]
[1771694163544,0.02424362,68348.0,68341.0,0.07316252]
[1771694163699,0.02424362,68348.0,68344.0,0.00022]
[1771694164992,0.02424362,68348.0,68344.0,0.00122]
[1771694167254,0.02424362,68348.0,68344.0,0.00022]
[1771694167665,0.02424362,68348.0,68344.0,0.00122]
[1771694168046,0.09739876,68348.0,68344.0,0.00122]
[1771694168431,0.02424362,68348.0,68344.0,0.00122]
[1771694169035,0.09739872,68348.0,68344.0,0.00122]
[1771694170343,0.09739872,68348.0,68344.0,0.00022]
[1771694170559,0.09739872,68348.0,68344.0,0.00122]
[1771694170915,0.09739872,68348.0,68344.0,0.00022]
[1771694172293,0.09619849,68347.0,68344.0,0.00022]
[1771694173817,0.02304232,68347.0,68344.0,0.00022]
[1771694174221,0.07315412,68349.0,68344.0,0.00022]
[1771694174818,0.07315412,68349.0,68344.0,0.00122]
[1771694175222,0.07315412,68349.0,68344.0,0.00022]
[1771694175422,0.07315412,68349.0,68344.0,0.00122]
[1771694175848,0.07315412,68349.0,68344.0,0.00022]
[1771694176045,0.09619273,68353.0,68344.0,0.07437917]
[1771694176254,0.07314325,68359.0,68346.0,0.15121399]
[1771694176452,0.00016,68360.0,68344.0,0.15243399]
[1771694176689,0.07314857,68355.0,68347.0,0.07315535]
[1771694176894,0.07314675,68356.0,68348.0,0.0731547]
[1771694177167,0.07314573,68357.0,68349.0,0.07315366]
[1771694177369,0.07314453,68358.0,68350.0,0.07315232]
[1771694178211,0.001,68356.0,68350.0,0.07315232]
[1771694178627,0.09618619,68359.0,68350.0,0.07315232]
[1771694178628,0.07314554,68357.0,68350.0,0.07315232]
[1771694178843,0.07314554,68357.0,68348.0,0.07315503]
[1771694179068,0.001,68358.0,68353.0,0.07314872]
[1771694179299,0.07313977,68363.0,68354.0,0.15121399]
[1771694179509,0.07313977,68363.0,68355.0,0.07314747]
[1771694180405,0.07313977,68363.0,68356.0,0.07314635]
[1771694180615,0.07313827,68364.0,68356.0,0.07314635]